[Event "*** SCC Grand Prix: Titled Tuesday Blitz"]
[Site "Chess.com"]
[Date "2020.09.08"]
[Round "3"]
[White "KyrgyzFighter"]
[Black "blitzking1729"]
[Result "1-0"]
[WhiteElo "2351"]
[BlackElo "2615"]
[TimeControl "180+1"]
[EndTime "10:28:27 PDT"]
[Termination "KyrgyzFighter won by resignation"]

1. c4 {[%clk 0:03:00.9]} 1... d6 {[%clk 0:02:57.9]} 2. Nc3 {[%clk 0:03:00.6]}
2... e5 {[%clk 0:02:58]} 3. g3 {[%clk 0:02:56.8]} 3... f5 {[%clk 0:02:56.8]} 4.
Bg2 {[%clk 0:02:56.4]} 4... Nf6 {[%clk 0:02:57.3]} 5. e3 {[%clk 0:02:56.2]} 5...
Be7 {[%clk 0:02:57.6]} 6. Nge2 {[%clk 0:02:56.7]} 6... O-O {[%clk 0:02:58]} 7.
O-O {[%clk 0:02:57.3]} 7... Kh8 {[%clk 0:02:55.6]} 8. d4 {[%clk 0:02:52.7]} 8...
e4 {[%clk 0:02:55.2]} 9. b4 {[%clk 0:02:51.6]} 9... c6 {[%clk 0:02:54.5]} 10. d5
{[%clk 0:02:50.3]} 10... cxd5 {[%clk 0:02:52.2]} 11. Nxd5 {[%clk 0:02:49.4]}
11... Nxd5 {[%clk 0:02:51.4]} 12. Qxd5 {[%clk 0:02:42.9]} 12... Bf6 {[%clk
0:02:45.1]} 13. Rb1 {[%clk 0:02:42.6]} 13... Nc6 {[%clk 0:02:45]} 14. Rd1 {[%clk
0:02:37.2]} 14... Be5 {[%clk 0:02:43.9]} 15. Bb2 {[%clk 0:01:57.8]} 15... Nxb4
{[%clk 0:02:26.8]} 16. Qb5 {[%clk 0:01:43.8]} 16... Nd3 {[%clk 0:02:24]} 17.
Bxe5 {[%clk 0:01:44.2]} 17... dxe5 {[%clk 0:02:22.8]} 18. Nc1 {[%clk 0:01:43.7]}
18... f4 {[%clk 0:01:59.2]} 19. Bxe4 {[%clk 0:01:33.9]} 19... fxg3 {[%clk
0:01:44]} 20. hxg3 {[%clk 0:01:24.3]} 20... Bd7 {[%clk 0:01:35.2]} 21. Qxb7
{[%clk 0:01:14.3]} 21... Nxf2 {[%clk 0:01:06.7]} 22. Rxd7 {[%clk 0:01:01.7]}
22... Qg5 {[%clk 0:00:47.3]} 23. Rxg7 {[%clk 0:01:01.1]} 23... Nh3+ {[%clk
0:00:33.8]} 24. Kh2 {[%clk 0:00:54.1]} 24... Rf2+ {[%clk 0:00:21.3]} 25. Bg2
{[%clk 0:00:53.3]} 25... Qxg7 {[%clk 0:00:16.1]} 26. Qxa8+ {[%clk 0:00:52.7]}
26... Rf8 {[%clk 0:00:15.9]} 27. Rb8 {[%clk 0:00:51.8]} 1-0

[Event "*** SCC Grand Prix: Titled Tuesday Blitz"]
[Site "Chess.com"]
[Date "2020.09.08"]
[Round "3"]
[White "UmarovSabir"]
[Black "TheMagnet"]
[Result "0-1"]
[WhiteElo "2377"]
[BlackElo "2580"]
[TimeControl "180+1"]
[EndTime "10:28:28 PDT"]
[Termination "TheMagnet won on time"]

1. e4 {[%clk 0:03:00.9]} 1... c5 {[%clk 0:02:59.8]} 2. a3 {[%clk 0:02:58.1]}
2... g6 {[%clk 0:02:59.5]} 3. Nf3 {[%clk 0:02:54.4]} 3... Bg7 {[%clk 0:02:59.3]}
4. Bc4 {[%clk 0:02:53]} 4... Nc6 {[%clk 0:02:58.4]} 5. O-O {[%clk 0:02:51.9]}
5... d6 {[%clk 0:02:56]} 6. c3 {[%clk 0:02:40.4]} 6... Nf6 {[%clk 0:02:55.7]} 7.
Re1 {[%clk 0:02:39.4]} 7... Bg4 {[%clk 0:02:53.9]} 8. h3 {[%clk 0:02:38.2]} 8...
Bxf3 {[%clk 0:02:53.8]} 9. Qxf3 {[%clk 0:02:38.7]} 9... O-O {[%clk 0:02:53.8]}
10. d3 {[%clk 0:02:34.9]} 10... a6 {[%clk 0:02:44.3]} 11. Ba2 {[%clk 0:02:32.1]}
11... b5 {[%clk 0:02:41]} 12. Nd2 {[%clk 0:02:21.2]} 12... Rc8 {[%clk
0:02:38.4]} 13. Nf1 {[%clk 0:01:57.3]} 13... a5 {[%clk 0:02:33.1]} 14. Ne3
{[%clk 0:01:44.2]} 14... b4 {[%clk 0:02:31.4]} 15. axb4 {[%clk 0:01:30.2]} 15...
axb4 {[%clk 0:02:32.3]} 16. Bd2 {[%clk 0:01:29.9]} 16... Qb6 {[%clk 0:02:19]}
17. Nc4 {[%clk 0:01:11.9]} 17... Qc7 {[%clk 0:02:18.6]} 18. Qe3 {[%clk
0:00:39.1]} 18... Nd7 {[%clk 0:02:10.7]} 19. Kh1 {[%clk 0:00:32.4]} 19... Nb6
{[%clk 0:02:03.7]} 20. f4 {[%clk 0:00:29.7]} 20... Nxc4 {[%clk 0:02:03]} 21.
Bxc4 {[%clk 0:00:30]} 21... Rb8 {[%clk 0:01:59.1]} 22. f5 {[%clk 0:00:18.5]}
22... bxc3 {[%clk 0:01:58]} 23. bxc3 {[%clk 0:00:16.7]} 23... Ne5 {[%clk
0:01:54.8]} 24. Bd5 {[%clk 0:00:14.9]} 24... Qd7 {[%clk 0:01:40.3]} 25. Rf1
{[%clk 0:00:13.7]} 25... e6 {[%clk 0:01:37.9]} 26. fxe6 {[%clk 0:00:13.8]} 26...
fxe6 {[%clk 0:01:38.8]} 27. Ba2 {[%clk 0:00:13.8]} 27... Kh8 {[%clk 0:01:37.6]}
28. Rxf8+ {[%clk 0:00:12.9]} 28... Rxf8 {[%clk 0:01:38.5]} 29. d4 {[%clk
0:00:12.2]} 29... cxd4 {[%clk 0:01:34.2]} 30. cxd4 {[%clk 0:00:13.1]} 30... Nc6
{[%clk 0:01:34.7]} 31. Bc3 {[%clk 0:00:12.2]} 31... e5 {[%clk 0:01:32.9]} 32.
dxe5 {[%clk 0:00:09.8]} 32... dxe5 {[%clk 0:01:26.9]} 33. Bd5 {[%clk 0:00:08.2]}
33... Nd4 {[%clk 0:01:26.7]} 34. Qd3 {[%clk 0:00:04.2]} 34... Qe7 {[%clk
0:01:20.8]} 35. Qc4 {[%clk 0:00:02.5]} 35... h5 {[%clk 0:01:13.4]} 0-1

[Event "*** SCC Grand Prix: Titled Tuesday Blitz"]
[Site "Chess.com"]
[Date "2020.09.08"]
[Round "3"]
[White "SophieNikoladze"]
[Black "MFBerna"]
[Result "0-1"]
[WhiteElo "2237"]
[BlackElo "2455"]
[TimeControl "180+1"]
[EndTime "10:28:31 PDT"]
[Termination "MFBerna won by resignation"]

1. d4 {[%clk 0:03:00.9]} 1... d5 {[%clk 0:02:59.8]} 2. Nf3 {[%clk 0:03:00.2]}
2... c6 {[%clk 0:03:00.1]} 3. e3 {[%clk 0:03:00.4]} 3... Nf6 {[%clk 0:03:00.7]}
4. c4 {[%clk 0:02:59.9]} 4... Bf5 {[%clk 0:03:00.2]} 5. Nc3 {[%clk 0:03:00.4]}
5... e6 {[%clk 0:03:00.4]} 6. Nh4 {[%clk 0:02:59.6]} 6... Bg6 {[%clk 0:03:00.4]}
7. Nxg6 {[%clk 0:02:58.1]} 7... hxg6 {[%clk 0:03:01.3]} 8. Qb3 {[%clk
0:02:58.1]} 8... Qb6 {[%clk 0:03:01.3]} 9. Bd2 {[%clk 0:02:56.5]} 9... Nbd7
{[%clk 0:03:01.1]} 10. Bd3 {[%clk 0:02:54.1]} 10... Be7 {[%clk 0:03:00]} 11. f4
{[%clk 0:02:51.5]} 11... O-O {[%clk 0:02:56.6]} 12. c5 {[%clk 0:02:51.4]} 12...
Qxb3 {[%clk 0:02:55.2]} 13. axb3 {[%clk 0:02:50.2]} 13... b6 {[%clk 0:02:55.6]}
14. b4 {[%clk 0:02:50]} 14... a5 {[%clk 0:02:52.8]} 15. bxa5 {[%clk 0:02:43.9]}
15... bxc5 {[%clk 0:02:52.7]} 16. dxc5 {[%clk 0:02:43.1]} 16... Bxc5 {[%clk
0:02:44.6]} 17. Ke2 {[%clk 0:02:41.7]} 17... e5 {[%clk 0:02:41.6]} 18. fxe5
{[%clk 0:02:37.8]} 18... Nxe5 {[%clk 0:02:41.7]} 19. Na4 {[%clk 0:02:37.9]}
19... Bd6 {[%clk 0:02:40.1]} 20. b4 {[%clk 0:02:36.7]} 20... Rfb8 {[%clk
0:02:39.4]} 21. Nb6 {[%clk 0:02:35.6]} 21... Ra7 {[%clk 0:02:38.3]} 22. Bc3
{[%clk 0:02:32.2]} 22... Nxd3 {[%clk 0:02:24.3]} 23. Kxd3 {[%clk 0:02:32]} 23...
Ne4 {[%clk 0:02:24.9]} 24. Ra2 {[%clk 0:02:26.5]} 24... Rxb6 {[%clk 0:02:20.2]}
25. Bd4 {[%clk 0:02:25.9]} 25... c5 {[%clk 0:02:15.3]} 26. bxc5 {[%clk
0:02:22.3]} 26... Nxc5+ {[%clk 0:02:09.6]} 27. Bxc5 {[%clk 0:02:19]} 27... Bxc5
{[%clk 0:02:10.5]} 28. axb6 {[%clk 0:02:17.2]} 28... Rxa2 {[%clk 0:02:11.4]} 29.
Rb1 {[%clk 0:02:15.5]} 29... Bxb6 {[%clk 0:01:43]} 30. Rxb6 {[%clk 0:02:14.4]}
30... Rxg2 {[%clk 0:01:43.5]} 31. Rb8+ {[%clk 0:02:08.8]} 31... Kh7 {[%clk
0:01:43]} 32. Rf8 {[%clk 0:02:08.3]} 32... f5 {[%clk 0:01:40.6]} 33. Rd8 {[%clk
0:02:03.7]} 33... Rxh2 {[%clk 0:01:40]} 34. Rxd5 {[%clk 0:02:03.7]} 34... Rh3
{[%clk 0:01:37.2]} 35. Rd4 {[%clk 0:02:02.6]} 35... g5 {[%clk 0:01:35.8]} 36.
Ke2 {[%clk 0:02:00.9]} 36... g4 {[%clk 0:01:33.2]} 37. Kf2 {[%clk 0:01:54.7]}
37... g5 {[%clk 0:01:25.3]} 38. Rd5 {[%clk 0:01:52.3]} 38... Rf3+ {[%clk
0:01:24.1]} 39. Kg2 {[%clk 0:01:50.1]} 39... Kg6 {[%clk 0:01:24.7]} 40. Re5
{[%clk 0:01:44.3]} 40... Kf6 {[%clk 0:01:24]} 41. Re8 {[%clk 0:01:43.9]} 41...
f4 {[%clk 0:01:18.8]} 42. e4 {[%clk 0:01:19.1]} 42... Re3 {[%clk 0:01:15]} 43.
Kf2 {[%clk 0:01:16.2]} 43... g3+ {[%clk 0:01:14.1]} 44. Kg2 {[%clk 0:01:16]}
44... g4 {[%clk 0:01:09.2]} 45. Rg8 {[%clk 0:01:14.5]} 45... Re2+ {[%clk
0:01:06.8]} 46. Kf1 {[%clk 0:01:14]} 46... g2+ {[%clk 0:01:00.2]} 47. Kg1 {[%clk
0:01:10.6]} 47... f3 {[%clk 0:00:56.5]} 48. Rxg4 {[%clk 0:01:09.4]} 48... Re1+
{[%clk 0:00:56.7]} 49. Kf2 {[%clk 0:01:05.6]} 49... Rf1+ {[%clk 0:00:57]} 50.
Ke3 {[%clk 0:01:05.6]} 50... g1=Q+ {[%clk 0:00:56.1]} 51. Rxg1 {[%clk
0:01:05.4]} 51... Rxg1 {[%clk 0:00:57]} 52. Kxf3 {[%clk 0:01:05.2]} 52... Ke5
{[%clk 0:00:56.9]} 0-1

[Event "*** SCC Grand Prix: Titled Tuesday Blitz"]
[Site "Chess.com"]
[Date "2020.09.08"]
[Round "3"]
[White "stepanosinovsky"]
[Black "Vsevolod_Ovchinnikov"]
[Result "0-1"]
[WhiteElo "2351"]
[BlackElo "2563"]
[TimeControl "180+1"]
[EndTime "10:28:38 PDT"]
[Termination "Vsevolod_Ovchinnikov won on time"]

1. e3 {[%clk 0:03:00.9]} 1... Nf6 {[%clk 0:02:59.9]} 2. d4 {[%clk 0:02:57.7]}
2... g6 {[%clk 0:03:00.3]} 3. c3 {[%clk 0:02:57]} 3... Bg7 {[%clk 0:03:00.7]} 4.
Bd3 {[%clk 0:02:56.6]} 4... d6 {[%clk 0:02:58.1]} 5. Nd2 {[%clk 0:02:56]} 5...
e5 {[%clk 0:02:54.1]} 6. Ngf3 {[%clk 0:02:38.2]} 6... Qe7 {[%clk 0:02:50.8]} 7.
Qc2 {[%clk 0:02:32.3]} 7... O-O {[%clk 0:02:47.1]} 8. O-O {[%clk 0:02:31.9]}
8... Re8 {[%clk 0:02:45]} 9. Ne4 {[%clk 0:02:24]} 9... Nfd7 {[%clk 0:02:33.6]}
10. Bc4 {[%clk 0:01:43.7]} 10... Nb6 {[%clk 0:02:16.2]} 11. Bb3 {[%clk 0:01:42]}
11... Bf5 {[%clk 0:02:02.5]} 12. dxe5 {[%clk 0:01:26.7]} 12... dxe5 {[%clk
0:01:36.7]} 13. Nfg5 {[%clk 0:01:11.7]} 13... Rf8 {[%clk 0:01:36.3]} 14. Qe2
{[%clk 0:00:34.6]} 14... h6 {[%clk 0:01:13.5]} 15. g4 {[%clk 0:00:34.1]} 15...
Bd7 {[%clk 0:01:07.6]} 16. Nh3 {[%clk 0:00:31.2]} 16... Qh4 {[%clk 0:01:04.3]}
17. f3 {[%clk 0:00:19.8]} 17... Qxh3 {[%clk 0:00:58.4]} 18. Rd1 {[%clk
0:00:13.7]} 18... Nc6 {[%clk 0:00:42]} 19. a4 {[%clk 0:00:07.5]} 19... a5 {[%clk
0:00:41.6]} 20. Nc5 {[%clk 0:00:06.7]} 20... Bc8 {[%clk 0:00:41.6]} 21. e4
{[%clk 0:00:03.5]} 21... Qh4 {[%clk 0:00:37.6]} 22. Be3 {[%clk 0:00:02.3]} 22...
Kh7 {[%clk 0:00:32.8]} 0-1

[Event "*** SCC Grand Prix: Titled Tuesday Blitz"]
[Site "Chess.com"]
[Date "2020.09.08"]
[Round "3"]
[White "Alexander_Moskalenko"]
[Black "FlamingPhoenix123"]
[Result "1/2-1/2"]
[WhiteElo "2791"]
[BlackElo "2563"]
[TimeControl "180+1"]
[EndTime "10:28:44 PDT"]
[Termination "Game drawn by agreement"]

1. c4 {[%clk 0:02:50.8]} 1... Nf6 {[%clk 0:02:47.1]} 2. Nc3 {[%clk 0:02:47.6]}
2... e6 {[%clk 0:02:46]} 3. Nf3 {[%clk 0:02:46.4]} 3... d5 {[%clk 0:02:42.6]} 4.
e3 {[%clk 0:02:44.9]} 4... Be7 {[%clk 0:02:37.7]} 5. b3 {[%clk 0:02:45]} 5... c6
{[%clk 0:02:37.4]} 6. Bb2 {[%clk 0:02:44.6]} 6... O-O {[%clk 0:02:37.1]} 7. Qc2
{[%clk 0:02:43.9]} 7... Nbd7 {[%clk 0:02:36.5]} 8. g4 {[%clk 0:02:30.5]} 8...
Nxg4 {[%clk 0:02:32.6]} 9. Rg1 {[%clk 0:02:27.7]} 9... Ngf6 {[%clk 0:02:33]} 10.
Ne2 {[%clk 0:02:23.4]} 10... a5 {[%clk 0:02:21.6]} 11. Nf4 {[%clk 0:02:11.9]}
11... a4 {[%clk 0:02:16.3]} 12. bxa4 {[%clk 0:02:10.8]} 12... Qa5 {[%clk
0:02:06.4]} 13. Ng5 {[%clk 0:02:10.3]} 13... Qxa4 {[%clk 0:02:02.2]} 14. Qb1
{[%clk 0:02:10.8]} 14... e5 {[%clk 0:01:53.7]} 15. Nh5 {[%clk 0:01:44.2]} 15...
g6 {[%clk 0:01:53]} 16. Bd3 {[%clk 0:01:32.4]} 16... Nxh5 {[%clk 0:01:49.2]} 17.
Nxh7 {[%clk 0:01:32]} 17... e4 {[%clk 0:01:32.3]} 18. Bxe4 {[%clk 0:01:31.6]}
18... dxe4 {[%clk 0:01:26.2]} 19. Nxf8 {[%clk 0:01:28.7]} 19... Bxf8 {[%clk
0:01:10.3]} 20. Qxe4 {[%clk 0:01:29]} 20... Ndf6 {[%clk 0:01:01.9]} 21. Qd4
{[%clk 0:00:58.4]} 21... Be6 {[%clk 0:00:52.6]} 22. d3 {[%clk 0:00:56.1]} 22...
Bg7 {[%clk 0:00:51.7]} 23. Qb6 {[%clk 0:00:50.9]} 23... Qc2 {[%clk 0:00:45]} 24.
Qb3 {[%clk 0:00:48.1]} 24... Qxb3 {[%clk 0:00:43.1]} 25. axb3 {[%clk 0:00:49]}
25... Rxa1+ {[%clk 0:00:43.8]} 26. Bxa1 {[%clk 0:00:49.9]} 26... Ng4 {[%clk
0:00:44.1]} 27. Bxg7 {[%clk 0:00:49.8]} 27... Kxg7 {[%clk 0:00:45]} 28. h3
{[%clk 0:00:48.9]} 28... Ne5 {[%clk 0:00:44.1]} 29. Ke2 {[%clk 0:00:49.5]} 29...
Bxh3 {[%clk 0:00:43.5]} 30. Ra1 {[%clk 0:00:49.5]} 30... Bg4+ {[%clk 0:00:42.7]}
31. Kd2 {[%clk 0:00:49.4]} 31... b5 {[%clk 0:00:25.6]} 32. Ra6 {[%clk
0:00:45.8]} 32... bxc4 {[%clk 0:00:24.6]} 33. bxc4 {[%clk 0:00:46.7]} 33... Nf3+
{[%clk 0:00:21.6]} 34. Kc3 {[%clk 0:00:46.1]} 34... Bd7 {[%clk 0:00:21.4]}
1/2-1/2

[Event "*** SCC Grand Prix: Titled Tuesday Blitz"]
[Site "Chess.com"]
[Date "2020.09.08"]
[Round "3"]
[White "creativity"]
[Black "korbul"]
[Result "1-0"]
[WhiteElo "2090"]
[BlackElo "2455"]
[TimeControl "180+1"]
[EndTime "10:28:48 PDT"]
[Termination "creativity won by checkmate"]

1. d4 {[%clk 0:02:50.8]} 1... Nf6 {[%clk 0:02:59.5]} 2. c4 {[%clk 0:02:45.7]}
2... d6 {[%clk 0:02:59.4]} 3. Nf3 {[%clk 0:02:44]} 3... Nbd7 {[%clk 0:03:00.3]}
4. Nc3 {[%clk 0:02:43.2]} 4... e5 {[%clk 0:03:00.3]} 5. e4 {[%clk 0:02:42.1]}
5... Be7 {[%clk 0:02:59.9]} 6. Be2 {[%clk 0:02:41.1]} 6... O-O {[%clk
0:02:59.6]} 7. O-O {[%clk 0:02:40.8]} 7... c6 {[%clk 0:02:59.8]} 8. Re1 {[%clk
0:02:36.1]} 8... a6 {[%clk 0:02:59.5]} 9. h3 {[%clk 0:02:28.3]} 9... b5 {[%clk
0:02:57.7]} 10. d5 {[%clk 0:02:20.8]} 10... cxd5 {[%clk 0:02:55.4]} 11. Nxd5
{[%clk 0:02:10]} 11... Nxd5 {[%clk 0:02:41.7]} 12. cxd5 {[%clk 0:02:01.7]} 12...
Nc5 {[%clk 0:02:40.2]} 13. Bf1 {[%clk 0:01:59]} 13... Bd7 {[%clk 0:02:33.6]} 14.
Bd2 {[%clk 0:01:51.1]} 14... g6 {[%clk 0:02:31.5]} 15. Rc1 {[%clk 0:01:49.3]}
15... f5 {[%clk 0:02:15.7]} 16. exf5 {[%clk 0:01:39.6]} 16... Bxf5 {[%clk
0:02:11]} 17. Be3 {[%clk 0:01:38]} 17... Rc8 {[%clk 0:01:55.5]} 18. Bxc5 {[%clk
0:01:32.9]} 18... dxc5 {[%clk 0:01:55.4]} 19. Nxe5 {[%clk 0:01:32.4]} 19... Bf6
{[%clk 0:01:53.2]} 20. Nc6 {[%clk 0:01:30.3]} 20... Qd6 {[%clk 0:01:51.2]} 21.
a4 {[%clk 0:01:14.1]} 21... c4 {[%clk 0:01:40.6]} 22. axb5 {[%clk 0:01:08.9]}
22... axb5 {[%clk 0:01:40.3]} 23. b3 {[%clk 0:01:07.4]} 23... c3 {[%clk
0:00:56.9]} 24. Bxb5 {[%clk 0:01:06.4]} 24... Rc7 {[%clk 0:00:55]} 25. Bc4
{[%clk 0:01:05.5]} 25... Kh8 {[%clk 0:00:52]} 26. Qe2 {[%clk 0:01:02.8]} 26...
Bg7 {[%clk 0:00:49.6]} 27. Qe3 {[%clk 0:00:53.5]} 27... Qf6 {[%clk 0:00:44.6]}
28. b4 {[%clk 0:00:50.6]} 28... c2 {[%clk 0:00:39.7]} 29. b5 {[%clk 0:00:50.3]}
29... Qb2 {[%clk 0:00:37.8]} 30. d6 {[%clk 0:00:45.6]} 30... Rd7 {[%clk
0:00:35]} 31. Bd3 {[%clk 0:00:31.2]} 31... Bh6 {[%clk 0:00:19.4]} 32. Qxh6
{[%clk 0:00:29.8]} 32... Bxd3 {[%clk 0:00:19.4]} 33. Qxf8# {[%clk 0:00:29]} 1-0

[Event "*** SCC Grand Prix: Titled Tuesday Blitz"]
[Site "Chess.com"]
[Date "2020.09.08"]
[Round "3"]
[White "dretch"]
[Black "albano87"]
[Result "1-0"]
[WhiteElo "2779"]
[BlackElo "2533"]
[TimeControl "180+1"]
[EndTime "10:28:54 PDT"]
[Termination "dretch won by resignation"]

1. d4 {[%clk 0:03:00.9]} 1... d5 {[%clk 0:02:57.4]} 2. c4 {[%clk 0:03:01.2]}
2... e6 {[%clk 0:02:57.4]} 3. Nc3 {[%clk 0:03:01.6]} 3... Nf6 {[%clk 0:02:58.1]}
4. cxd5 {[%clk 0:03:01.5]} 4... exd5 {[%clk 0:02:58.2]} 5. Bg5 {[%clk
0:03:00.8]} 5... Nbd7 {[%clk 0:02:57.9]} 6. e3 {[%clk 0:02:59.9]} 6... Be7
{[%clk 0:02:54.6]} 7. Bd3 {[%clk 0:02:59.4]} 7... O-O {[%clk 0:02:55.2]} 8. Nge2
{[%clk 0:02:57.5]} 8... c5 {[%clk 0:02:50.5]} 9. O-O {[%clk 0:02:54.1]} 9... b6
{[%clk 0:02:49.4]} 10. Rc1 {[%clk 0:02:43.9]} 10... Bb7 {[%clk 0:02:48.7]} 11.
Ng3 {[%clk 0:02:42.7]} 11... g6 {[%clk 0:02:47.1]} 12. f4 {[%clk 0:02:35.4]}
12... Ne4 {[%clk 0:02:40.8]} 13. Bxe7 {[%clk 0:02:29.5]} 13... Qxe7 {[%clk
0:02:40.2]} 14. Bxe4 {[%clk 0:02:27.6]} 14... dxe4 {[%clk 0:02:39.2]} 15. f5
{[%clk 0:02:28.1]} 15... cxd4 {[%clk 0:02:28.6]} 16. Qxd4 {[%clk 0:02:26.4]}
16... Nc5 {[%clk 0:02:21.1]} 17. f6 {[%clk 0:02:18.2]} 17... Qe6 {[%clk
0:02:15.3]} 18. Rcd1 {[%clk 0:02:05.6]} 18... Rfe8 {[%clk 0:02:02.7]} 19. Nb5
{[%clk 0:01:59]} 19... Qc6 {[%clk 0:01:46.4]} 20. Nd6 {[%clk 0:01:53.8]} 20...
Rad8 {[%clk 0:01:37.2]} 21. Qd2 {[%clk 0:01:03.1]} 21... Re6 {[%clk 0:01:26.8]}
22. Ngf5 {[%clk 0:00:55.3]} 22... gxf5 {[%clk 0:01:18.4]} 23. Qf2 {[%clk
0:00:54]} 23... Rxf6 {[%clk 0:01:14.2]} 24. Nxf5 {[%clk 0:00:50]} 24... Rxd1
{[%clk 0:01:07.3]} 25. Qg3+ {[%clk 0:00:42.8]} 25... Rg6 {[%clk 0:01:03.6]} 26.
Qb8+ {[%clk 0:00:41.1]} 26... Bc8 {[%clk 0:00:15.5]} 27. Rxd1 {[%clk 0:00:32.7]}
27... Re6 {[%clk 0:00:05.9]} 28. Qg3+ {[%clk 0:00:26.1]} 28... Rg6 {[%clk
0:00:03.4]} 29. Rd8+ {[%clk 0:00:25.2]} 1-0

[Event "*** SCC Grand Prix: Titled Tuesday Blitz"]
[Site "Chess.com"]
[Date "2020.09.08"]
[Round "3"]
[White "chessmachine14"]
[Black "shnitez"]
[Result "1-0"]
[WhiteElo "2357"]
[BlackElo "2521"]
[TimeControl "180+1"]
[EndTime "10:28:55 PDT"]
[Termination "chessmachine14 won on time"]

1. e4 {[%clk 0:03:00.9]} 1... c5 {[%clk 0:02:59.6]} 2. Nf3 {[%clk 0:03:00.4]}
2... e6 {[%clk 0:02:59.8]} 3. d4 {[%clk 0:02:59.9]} 3... cxd4 {[%clk 0:03:00.7]}
4. Nxd4 {[%clk 0:03:00]} 4... a6 {[%clk 0:03:01.2]} 5. Bd3 {[%clk 0:02:57.3]}
5... Bc5 {[%clk 0:03:00.3]} 6. Nb3 {[%clk 0:02:56.3]} 6... Be7 {[%clk
0:03:00.3]} 7. O-O {[%clk 0:02:53.8]} 7... d6 {[%clk 0:03:00.1]} 8. c4 {[%clk
0:02:51.7]} 8... Nf6 {[%clk 0:02:59.8]} 9. Nc3 {[%clk 0:02:51.9]} 9... b6 {[%clk
0:02:45.3]} 10. a4 {[%clk 0:02:49.4]} 10... Nc6 {[%clk 0:02:44.1]} 11. Kh1
{[%clk 0:02:25.9]} 11... Bb7 {[%clk 0:02:40.7]} 12. f4 {[%clk 0:02:25.8]} 12...
O-O {[%clk 0:02:36.7]} 13. Be3 {[%clk 0:02:16.3]} 13... Qc7 {[%clk 0:02:25.6]}
14. Qe2 {[%clk 0:02:05.9]} 14... Nd7 {[%clk 0:01:38.6]} 15. Rac1 {[%clk
0:01:53.5]} 15... Nc5 {[%clk 0:01:34.4]} 16. Nxc5 {[%clk 0:01:42.9]} 16... bxc5
{[%clk 0:01:33.1]} 17. Rcd1 {[%clk 0:01:10.5]} 17... Rab8 {[%clk 0:01:22.1]} 18.
Bb1 {[%clk 0:01:01.8]} 18... Ba8 {[%clk 0:01:05.2]} 19. Rf3 {[%clk 0:00:50.7]}
19... e5 {[%clk 0:00:20.5]} 20. Nd5 {[%clk 0:00:49.2]} 20... Qb7 {[%clk
0:00:15.2]} 21. f5 {[%clk 0:00:45]} 21... Qxb2 {[%clk 0:00:10.9]} 22. Qf1 {[%clk
0:00:44.2]} 22... f6 {[%clk 0:00:09.7]} 23. Rh3 {[%clk 0:00:30.5]} 23... Rfe8
{[%clk 0:00:06.7]} 24. Bd3 {[%clk 0:00:29.4]} 24... Bf8 {[%clk 0:00:05]} 25. Qf3
{[%clk 0:00:29]} 25... Nd4 {[%clk 0:00:04.2]} 26. Qh5 {[%clk 0:00:28.2]} 26...
h6 {[%clk 0:00:02.4]} 27. Nxf6+ {[%clk 0:00:27.3]} 1-0

[Event "*** SCC Grand Prix: Titled Tuesday Blitz"]
[Site "Chess.com"]
[Date "2020.09.08"]
[Round "3"]
[White "lelya96"]
[Black "Chessdreamer2020"]
[Result "0-1"]
[WhiteElo "2156"]
[BlackElo "2381"]
[TimeControl "180+1"]
[EndTime "10:28:57 PDT"]
[Termination "Chessdreamer2020 won by resignation"]

1. b3 {[%clk 0:03:00.9]} 1... c5 {[%clk 0:02:58.8]} 2. Bb2 {[%clk 0:03:01]} 2...
Nc6 {[%clk 0:02:59.4]} 3. e3 {[%clk 0:03:00.1]} 3... e5 {[%clk 0:02:57.9]} 4.
Bb5 {[%clk 0:02:58.8]} 4... Nge7 {[%clk 0:02:54.5]} 5. Ne2 {[%clk 0:02:57.1]}
5... a6 {[%clk 0:02:53.7]} 6. Bxc6 {[%clk 0:02:48.8]} 6... Nxc6 {[%clk
0:02:54.6]} 7. O-O {[%clk 0:02:48.2]} 7... Be7 {[%clk 0:02:51.5]} 8. f4 {[%clk
0:02:46.2]} 8... d6 {[%clk 0:02:45.5]} 9. d3 {[%clk 0:02:41.8]} 9... O-O {[%clk
0:02:45.2]} 10. Nd2 {[%clk 0:02:40.6]} 10... Bf6 {[%clk 0:02:31.9]} 11. Ne4
{[%clk 0:02:29.9]} 11... Be7 {[%clk 0:02:32]} 12. N4g3 {[%clk 0:02:19.3]} 12...
f6 {[%clk 0:02:26.2]} 13. Qe1 {[%clk 0:02:14.6]} 13... d5 {[%clk 0:02:26.3]} 14.
fxe5 {[%clk 0:01:32.7]} 14... fxe5 {[%clk 0:02:25.7]} 15. e4 {[%clk 0:01:28.3]}
15... d4 {[%clk 0:02:23.2]} 16. Nf5 {[%clk 0:01:18.7]} 16... Bxf5 {[%clk
0:02:22.1]} 17. exf5 {[%clk 0:01:18.1]} 17... Nb4 {[%clk 0:02:15.3]} 18. Qd1
{[%clk 0:01:11.4]} 18... Nd5 {[%clk 0:02:13.9]} 19. Bc1 {[%clk 0:00:58]} 19...
Bg5 {[%clk 0:02:13.8]} 20. Ng3 {[%clk 0:00:54.8]} 20... Bxc1 {[%clk 0:02:12.7]}
21. Qxc1 {[%clk 0:00:54.8]} 21... Ne3 {[%clk 0:02:13.2]} 22. Rf2 {[%clk
0:00:54.9]} 22... Qd7 {[%clk 0:02:10.6]} 23. f6 {[%clk 0:00:49.9]} 23... Rxf6
{[%clk 0:02:09.2]} 24. Rxf6 {[%clk 0:00:49.4]} 24... gxf6 {[%clk 0:02:10.1]} 25.
c4 {[%clk 0:00:48]} 25... Qg4 {[%clk 0:02:06.2]} 26. Qd2 {[%clk 0:00:46.8]}
26... Rf8 {[%clk 0:02:04.4]} 27. Ne4 {[%clk 0:00:44.5]} 27... b6 {[%clk
0:02:00.3]} 28. h3 {[%clk 0:00:40.4]} 28... Qg6 {[%clk 0:01:57.1]} 29. b4 {[%clk
0:00:28.1]} 29... f5 {[%clk 0:01:54.7]} 30. Nc3 {[%clk 0:00:22.7]} 30... cxb4
{[%clk 0:01:48]} 31. Nd5 {[%clk 0:00:20.4]} 31... Nxd5 {[%clk 0:01:40.6]} 32.
cxd5 {[%clk 0:00:20.7]} 32... a5 {[%clk 0:01:39.7]} 33. Rc1 {[%clk 0:00:20.5]}
33... Kh8 {[%clk 0:01:35.5]} 34. Rc6 {[%clk 0:00:20.4]} 34... Qg3 {[%clk
0:01:32.8]} 35. Qh6 {[%clk 0:00:18.7]} 35... Qe3+ {[%clk 0:01:31.2]} 36. Qxe3
{[%clk 0:00:15.3]} 36... dxe3 {[%clk 0:01:32.1]} 37. Rxb6 {[%clk 0:00:15.4]}
37... Rd8 {[%clk 0:01:27.8]} 38. d6 {[%clk 0:00:14.8]} 38... Kg7 {[%clk
0:01:25.6]} 39. Kf1 {[%clk 0:00:14.4]} 39... Kf6 {[%clk 0:01:25.1]} 40. Ke2
{[%clk 0:00:14.9]} 40... f4 {[%clk 0:01:25]} 41. Ra6 {[%clk 0:00:12.9]} 41...
Ke6 {[%clk 0:01:22]} 42. Rxa5 {[%clk 0:00:13.2]} 42... Rxd6 {[%clk 0:01:21.9]}
43. Ra7 {[%clk 0:00:13.3]} 43... h6 {[%clk 0:01:21]} 44. Rh7 {[%clk 0:00:12.9]}
44... Kd5 {[%clk 0:01:20.2]} 45. Re7 {[%clk 0:00:11.4]} 45... Ra6 {[%clk
0:01:18.2]} 46. Rd7+ {[%clk 0:00:10]} 46... Kc6 {[%clk 0:01:17.6]} 47. Rh7
{[%clk 0:00:07.7]} 47... Rxa2+ {[%clk 0:01:17.4]} 48. Kf3 {[%clk 0:00:07.9]}
48... Rf2+ {[%clk 0:01:16]} 49. Kg4 {[%clk 0:00:05.9]} 49... e2 {[%clk 0:01:16]}
0-1